bitfinex/quotes_ETHUSD_20250814
["timestamp","ask_amount","ask_price","bid_price","bid_amount"]
[1755206229420,34.28658473,4544.4,4544.3,19.78388411]
[1755206229618,34.28658473,4544.4,4544.3,19.31808411]
[1755206230181,4.28658473,4544.4,4544.3,20.54808411]
[1755206230396,33.81374607,4544.4,4544.3,20.54808411]
[1755206230597,34.28658473,4544.4,4544.3,20.54808411]
[1755206231205,34.28661833,4544.4,4544.3,20.54808411]
[1755206231622,35.07466046,4544.4,4544.3,21.77808411]
[1755206232026,38.07466046,4544.4,4544.3,19.45828411]
[1755206232184,39.85666046,4544.4,4544.3,19.45828411]
[1755206232521,39.06861833,4544.4,4544.3,19.45828411]
[1755206233030,39.06861833,4544.4,4544.3,20.68828411]
[1755206233627,38.60761833,4544.4,4544.3,20.68828411]
[1755206234451,38.60761833,4544.4,4544.3,21.91828411]
[1755206234452,39.06861833,4544.4,4544.3,21.91828411]
[1755206234657,39.06861833,4544.4,4544.3,16.56598048]
[1755206234658,39.91852445,4544.4,4544.3,16.56598048]
[1755206234828,40.69514184,4544.4,4544.3,16.56398048]
[1755206235326,60.69514184,4544.4,4544.3,16.56398048]
[1755206235656,60.69514184,4544.4,4544.3,17.05217251]
[1755206235863,60.69514184,4544.4,4544.3,14.07808784]
[1755206236016,61.21299522,4544.4,4544.3,12.29399978]
[1755206236361,63.52999522,4544.4,4544.3,5.80686077]
[1755206236541,63.75209869,4544.4,4544.3,5.80686077]
[1755206236853,63.96997213,4544.4,4544.3,3.6378336]
[1755206237042,60.99412178,4544.4,4544.3,4.8678336]
[1755206237270,63.75209867,4544.4,4544.3,4.8678336]
[1755206237750,60.99412178,4544.4,4544.3,4.8678336]
[1755206237959,57.57812178,4544.4,4544.3,4.8678336]
[1755206238143,56.91772178,4544.4,4544.3,4.8678336]
[1755206238343,55.18321309,4544.4,4544.3,4.8678336]
[1755206238653,61.48243729,4544.4,4544.3,6.0978336]
[1755206238857,61.94343729,4544.4,4544.3,6.0978336]
[1755206239057,63.81673251,4544.4,4544.3,6.0978336]
[1755206239242,62.90611086,4544.4,4544.3,6.0978336]
[1755206239417,42.90611086,4544.4,4544.3,6.0978336]
[1755206240259,39.49211086,4544.4,4544.3,7.3278336]
[1755206240459,62.14720474,4544.4,4544.3,7.3278336]
[1755206240760,61.59720474,4544.4,4544.3,7.3278336]
[1755206240961,62.14720474,4544.4,4544.3,7.3278336]
[1755206241372,42.14720474,4544.4,4544.3,7.3278336]
[1755206241551,42.60820474,4544.4,4544.3,8.5578336]
[1755206241754,42.90611086,4544.4,4544.3,8.5578336]
[1755206242295,39.03111086,4544.4,4544.3,8.5578336]
[1755206242454,42.14720474,4544.4,4544.3,8.5578336]
[1755206243142,42.14720474,4544.4,4544.3,9.7878336]
[1755206243340,12.14720474,4544.4,4544.3,9.7878336]
[1755206243543,42.14720474,4544.4,4544.3,9.7878336]
[1755206243757,33.86220474,4544.4,4544.3,9.7878336]
[1755206243955,37.5711866,4544.4,4544.3,12.2714336]
[1755206244164,39.49985829,4544.4,4544.3,12.2714336]
[1755206244359,40.68158924,4544.4,4544.3,9.7878336]
[1755206244670,40.34776441,4544.4,4544.3,11.0178336]
[1755206245262,40.81886441,4544.4,4544.3,11.0178336]
[1755206245669,43.71692957,4544.4,4544.3,9.23352406]
[1755206245976,46.03492957,4544.4,4544.3,10.46352406]
[1755206246184,43.71692957,4544.4,4544.3,10.46352406]
[1755206246486,63.71692957,4544.4,4544.3,10.46352406]
[1755206246686,62.14186441,4544.4,4544.3,10.46352406]
[1755206247284,62.14186441,4544.4,4544.3,11.69352406]
[1755206247592,62.25663497,4544.4,4544.3,9.31432332]
[1755206247948,61.78453497,4544.4,4544.3,9.31432332]
[1755206248154,61.48662885,4544.4,4544.3,9.31432332]
[1755206248350,34.40885829,4544.4,4544.3,11.79792332]
[1755206248552,37.82185829,4544.4,4544.3,12.23482332]
[1755206248757,40.82185829,4544.4,4544.3,13.46482332]
[1755206248973,40.82185829,4544.4,4544.3,13.02792332]
[1755206250166,40.82185829,4544.4,4544.3,14.25792332]
[1755206251182,40.82185829,4544.4,4544.3,14.69482332]
[1755206251458,40.82185829,4544.4,4544.3,14.25792332]
[1755206251659,40.82176013,4544.4,4544.3,15.48792332]
[1755206251964,40.82176013,4544.4,4544.3,13.00432332]
[1755206252166,42.30137911,4544.4,4544.3,13.00432332]
[1755206252489,42.30137911,4544.4,4544.3,15.48792332]
[1755206252698,12.30137911,4544.4,4544.3,15.48792332]
[1755206252893,12.00347299,4544.4,4544.3,15.48792332]
[1755206253055,6.08576013,4544.4,4544.3,17.15482332]
[1755206253252,39.49876013,4544.4,4544.3,17.15482332]
[1755206254397,39.38372174,4544.4,4544.3,18.38482332]
[1755206254571,39.97480725,4544.4,4544.3,18.38482332]
[1755206255301,39.38372174,4544.4,4544.3,18.38482332]
[1755206255598,32.97072174,4544.4,4544.3,18.38482332]
[1755206255798,36.26062458,4544.4,4544.3,21.45340565]
[1755206256398,36.09744023,4544.4,4544.3,21.45340565]
[1755206256698,36.09744023,4544.4,4544.3,19.61482332]
[1755206256867,40.10956993,4544.4,4544.3,19.17792332]
[1755206257069,39.51844326,4544.4,4544.3,19.17792332]
[1755206257268,39.22053714,4544.4,4544.3,20.40792332]
[1755206257808,41.49479981,4544.4,4544.3,20.40792332]
[1755206258301,41.49479981,4544.4,4544.3,17.92432332]
[1755206258964,41.49479981,4544.4,4544.3,21.63792332]
[1755206259271,38.20440501,4544.4,4544.3,19.15432332]
[1755206259595,37.18330501,4544.4,4544.3,17.96479299]
[1755206259804,37.18330501,4544.4,4544.3,20.44839299]
[1755206259805,41.77729161,4544.4,4544.3,20.44839299]
[1755206259984,40.59530501,4544.4,4544.3,20.44839299]
[1755206260184,41.77729161,4544.4,4544.3,21.67839299]
[1755206260819,40.59530501,4544.4,4544.3,21.67839299]
[1755206261106,41.77729161,4544.4,4544.3,21.67839299]
[1755206261599,41.77729161,4544.4,4544.3,19.19479299]
[1755206261799,41.77729161,4544.4,4544.3,20.42479299]
[1755206263004,41.77729161,4544.4,4544.3,22.90839299]
[1755206263165,40.59530501,4544.4,4544.3,24.13839299]
[1755206263506,37.18330501,4544.4,4544.3,24.13839299]
[1755206263869,40.59530501,4544.4,4544.3,24.13839299]
[1755206264594,40.59530501,4544.4,4544.3,25.36839299]
[1755206265797,40.59546898,4544.4,4544.3,25.36839299]
[1755206266013,40.59546898,4544.4,4544.3,26.59839299]
[1755206267271,41.77745558,4544.4,4544.3,26.59839299]
[1755206267466,41.77745558,4544.4,4544.3,27.82839299]
[1755206267804,41.77745558,4544.4,4544.3,27.82939299]
[1755206268005,41.77745558,4544.4,4544.3,25.34579299]
[1755206268210,40.59546898,4544.4,4544.3,25.34579299]
[1755206268870,40.59546898,4544.4,4544.3,26.57579299]
[1755206269066,40.59570357,4544.4,4544.3,26.57579299]
[1755206269271,40.70610357,4544.4,4544.3,26.57579299]
[1755206269473,41.72720357,4544.4,4544.3,26.57579299]
[1755206269803,42.66828936,4544.4,4544.3,24.79170593]
[1755206270304,42.66828936,4544.4,4544.3,23.6428088]
[1755206271547,62.78333757,4544.4,4544.3,23.6428088]
[1755206271846,62.78333757,4544.4,4544.3,24.8728088]
[1755206271847,62.99395838,4544.4,4544.3,24.8728088]
[1755206272380,64.9629327,4544.4,4544.3,24.8728088]
[1755206273027,64.9629327,4544.4,4544.3,22.88087585]
[1755206273028,72.46736674,4544.4,4544.3,22.88087585]
[1755206273200,72.46736674,4544.4,4544.3,22.75694188]
[1755206273533,72.46736674,4544.4,4544.3,18.59261396]
[1755206273738,76.46736674,4544.4,4544.3,18.59261396]
[1755206273934,76.6852416,4544.4,4544.3,18.59261396]
[1755206274107,79.44693356,4544.4,4544.3,18.59261396]
[1755206274315,79.2290587,4544.4,4544.3,18.59261396]
[1755206274636,76.46736674,4544.4,4544.3,18.63279823]
[1755206275636,76.6852416,4544.4,4544.3,17.73279823]
[1755206275836,79.44693356,4544.4,4544.3,18.93779823]
[1755206276208,79.44693356,4544.4,4544.3,16.55796757]
[1755206277106,79.44693356,4544.4,4544.3,17.74896757]
[1755206277433,76.6852416,4544.4,4544.3,17.74896757]
[1755206277632,76.6852416,4544.4,4544.3,16.75531508]
[1755206277937,76.6852416,4544.4,4544.3,14.47631508]
[1755206278105,79.16736077,4544.4,4544.3,14.47631508]
[1755206278623,79.16736077,4544.4,4544.3,15.60631508]
[1755206278814,79.16736077,4544.4,4544.3,14.84598108]
[1755206279012,79.16736077,4544.4,4544.3,14.68071335]
[1755206279212,49.16736077,4544.4,4544.3,14.68071335]
[1755206279415,76.40566881,4544.4,4544.3,14.64171335]
[1755206279641,76.40566881,4544.4,4544.3,12.85682179]
[1755206279936,76.40566881,4544.4,4544.3,4.63832279]
[1755206280139,79.16691419,4544.4,4544.3,4.63832279]
[1755206280303,79.16691419,4544.4,4544.3,2.24753224]
[1755206280702,78.94903933,4544.4,4544.3,2.24753224]
[1755206281334,78.94903933,4544.4,4544.3,3.47753224]
[1755206281707,79.16691419,4544.4,4544.3,3.47753224]
[1755206281901,79.16691419,4544.4,4544.3,3.37493624]
[1755206282141,79.16691419,4544.4,4544.3,3.34993624]
[1755206282313,79.16691419,4544.4,4543.8,6.38201772]
[1755206282314,3.55,4544.3,4543.8,6.38201772]
[1755206282514,4.191,4543.5,4543.4,3.891781]
[1755206282742,4.191,4543.3,4541.4,14.484549]
[1755206282899,3.0515351,4541.5,4541.4,10.798608]
[1755206283213,3.0515351,4541.5,4541.4,6.905827]
[1755206283214,39.69467338,4541.5,4541.4,6.905827]
[1755206283415,42.52086286,4541.5,4541.4,6.905827]
[1755206283603,42.68387115,4541.5,4541.4,6.905827]
[1755206283803,42.68387115,4541.5,4541.4,9.381927]
[1755206283998,43.34588715,4541.5,4541.4,9.381927]
[1755206284247,42.16836707,4541.5,4541.4,9.381927]
[1755206284440,62.48247459,4541.5,4541.4,9.381927]
[1755206284741,62.00884503,4541.5,4541.4,9.381927]
[1755206284900,62.47955653,4541.5,4541.4,9.381927]
[1755206285303,62.47955653,4541.5,4541.4,10.611927]
[1755206285525,62.47945969,4541.5,4541.4,10.611927]
[1755206286307,62.47945969,4541.5,4541.4,8.135827]
[1755206286850,63.03865174,4541.5,4541.4,9.365827]
[1755206287007,64.61003187,4541.5,4541.4,9.365827]
[1755206287342,65.56727255,4541.5,4541.4,7.39382861]
[1755206287768,4.191,4541.1,4541.0,0.001]
[1755206287929,7.191,4541.0,4540.9,2.46]
[1755206288270,38.43276071,4541.0,4540.9,0.07859384]
[1755206288472,4.191,4540.8,4540.5,0.001]
[1755206288774,4.873,4540.6,4540.5,0.001]
[1755206289075,38.53266071,4540.6,4540.5,0.001]
[1755206289254,40.60227157,4540.6,4540.5,0.001]
[1755206289571,41.38484437,4540.6,4540.5,3.7071]
[1755206289765,41.15227157,4540.6,4540.5,4.1433]
[1755206289979,35.86727157,4540.6,4540.5,3.7071]
[1755206290180,40.60175751,4540.6,4540.5,1.231]
[1755206290353,41.15175751,4540.6,4540.5,3.7071]
[1755206290556,41.15175751,4540.6,4540.5,1.231]
[1755206290752,41.81390251,4540.6,4540.5,1.231]
[1755206291047,42.5957517,4540.6,4540.5,2.461]
[1755206291251,62.59549076,4540.6,4540.5,2.461]
[1755206291439,62.25800251,4540.6,4540.5,2.461]
[1755206291637,62.25800251,4540.6,4540.5,2.29230001]
[1755206291990,62.25800251,4540.6,4540.5,0.49526085]
[1755206292476,62.25800251,4540.6,4539.9,14.76]
[1755206292477,1.873,4540.0,4539.9,14.76]
[1755206292677,38.285,4540.0,4539.9,14.76]
[1755206292862,41.03046433,4540.0,4539.9,14.76]
[1755206293188,41.69271533,4540.0,4539.9,14.76]
[1755206293483,41.69271533,4540.0,4539.9,17.2361]
[1755206293637,41.69271533,4540.0,4539.9,18.4661]
[1755206294146,39.69747609,4540.0,4539.9,18.9023]
[1755206294481,41.57047609,4540.0,4539.9,18.9023]
[1755206294680,41.57047609,4540.0,4539.9,18.4661]
[1755206295188,42.15622075,4540.0,4539.9,19.6961]
[1755206295482,62.15622075,4540.0,4539.9,19.6961]
[1755206296482,62.27822685,4540.0,4539.9,20.9261]
[1755206296781,62.15622075,4540.0,4539.9,20.9261]
[1755206297278,62.27827121,4540.0,4539.9,20.9261]
[1755206297712,62.26662075,4540.0,4539.9,20.9261]
[1755206298021,64.14072075,4540.0,4539.9,19.68]
[1755206298182,0.55,4539.6,4537.6,4.92]
[1755206298373,0.55,4539.6,4536.6,15.72117363]
[1755206298374,1.323,4537.7,4536.6,15.72117363]
[1755206298573,4.323,4537.5,4536.6,15.72117363]
[1755206298776,1.323,4537.1,4536.6,15.72117363]
[1755206298978,1.13520615,4536.7,4536.6,15.72117363]
[1755206299180,38.299,4536.7,4536.6,15.72117363]
[1755206299381,41.5126659,4536.7,4536.6,15.72117363]
[1755206299582,41.63452446,4536.7,4536.6,15.72117363]
[1755206300005,41.73608503,4536.7,4536.6,15.72117363]
[1755206300211,41.81732793,4536.7,4536.6,15.72117363]
[1755206300409,61.15955118,4536.7,4536.6,15.72117363]
[1755206300614,61.8772162,4536.7,4536.6,15.72117363]
[1755206301086,64.2623162,4536.7,4536.6,15.22988663]
[1755206301291,61.8772162,4536.7,4536.6,13.66887187]
[1755206301485,64.50994106,4536.7,4536.6,2.09019476]
[1755206301691,64.50994106,4536.7,4535.3,11.07]
[1755206301692,0.55,4536.6,4535.3,11.07]
[1755206301887,1.873,4536.1,4536.0,1.18369999]
[1755206302091,39.21419483,4536.1,4536.0,1.18369999]
[1755206302289,4.1293215,4536.0,4535.3,11.07]
[1755206302533,4.873,4535.6,4535.3,11.07]
[1755206302716,3.55,4535.4,4535.3,11.07]
[1755206302919,34.92490633,4535.4,4535.3,10.91782291]
[1755206303217,57.32701165,4535.4,4535.3,10.91782291]
[1755206303432,56.55055381,4535.4,4535.3,10.91782291]
[1755206303745,59.98655381,4535.4,4535.3,10.91782291]
[1755206303948,60.3354789,4535.4,4535.3,10.91782291]
[1755206304250,59.56002546,4535.4,4535.3,13.79812291]
[1755206304409,60.99870254,4535.4,4535.3,10.91782291]
[1755206304610,60.99870254,4535.4,4535.3,12.14782291]
[1755206304930,59.39940744,4535.4,4535.3,15.02812291]
[1755206305136,53.54436123,4535.4,4535.3,15.02812291]
[1755206305344,36.40140744,4535.4,4535.3,15.02812291]
[1755206305556,35.93069594,4535.4,4535.3,15.02812291]
[1755206305923,35.93069594,4535.4,4535.3,16.25812291]
[1755206306428,38.93069594,4535.4,4535.3,16.25812291]
[1755206306754,35.93069594,4535.4,4535.3,16.25812291]
[1755206306963,38.93069594,4535.4,4535.3,16.25812291]
[1755206307319,38.93069594,4535.4,4535.3,14.60782291]
[1755206307563,40.25179327,4535.4,4535.3,14.60782291]
[1755206308263,40.36219327,4535.4,4535.3,14.60782291]
[1755206308470,39.40903679,4535.4,4535.3,17.48812291]
[1755206308803,27.746011,4535.4,4535.3,20.6305052]
[1755206308928,0.1104,4535.4,4535.3,20.6305052]
[1755206309452,0.1104,4535.7,4535.3,20.6305052]
[1755206309652,0.1104,4535.9,4535.4,3.456]
[1755206309831,0.1104,4535.9,4535.6,1.23]
[1755206310043,0.1104,4535.9,4535.7,3.458]
[1755206310222,3.458,4536.7,4535.8,2.20468274]
[1755206310426,0.1104,4536.5,4535.9,3.5684]
[1755206310654,27.635611,4536.4,4536.0,3.458]
[1755206310835,0.1104,4536.2,4536.1,0.3458]
[1755206311569,0.1104,4536.6,4536.1,0.3458]
[1755206311743,27.635611,4536.5,4536.2,3.458]
[1755206311938,0.1104,4536.6,4536.2,3.458]
[1755206312593,0.1104,4536.6,4536.1,0.3458]
[1755206312871,0.1104,4536.6,4536.5,1.23]
[1755206314360,0.1104,4536.6,4536.5,2.46]
[1755206314568,0.1104,4536.6,4536.5,5.918]
[1755206315771,0.1104,4536.6,4536.5,7.148]
[1755206316963,0.1104,4536.6,4536.5,3.69]
[1755206317181,0.1104,4536.6,4536.5,4.92]
[1755206317604,0.1104,4536.6,4536.5,5.412]
[1755206318688,0.1104,4536.6,4536.5,6.642]
[1755206319688,31.198011,4536.6,4536.5,6.15]
[1755206319977,27.746011,4536.6,4536.5,7.38]
[1755206320549,27.94924552,4536.6,4536.5,7.38]
[1755206321287,0.20323452,4536.6,4536.5,12.06]
[1755206321488,0.1104,4536.8,4536.5,9.816]
[1755206321862,1.41504101,4537.0,4536.6,3.449]
[1755206322060,1.21180649,4537.0,4536.6,3.5594]
[1755206322794,1.21180649,4537.0,4536.9,1.23]
[1755206323093,1.21180649,4537.0,4536.9,4.678]
[1755206323290,1.21180649,4537.0,4536.9,5.15684]
[1755206324301,1.21180649,4537.0,4536.9,6.38684]
[1755206325072,1.21180649,4537.0,4536.9,6.49724]
[1755206325793,1.21180649,4537.0,4536.9,7.72724]
[1755206327073,1.21180649,4537.0,4536.9,8.95724]
[1755206328111,1.21180649,4537.0,4536.9,5.50924]
[1755206328293,1.32220649,4537.0,4536.9,6.15]
[1755206329098,1.77980649,4537.0,4536.9,6.15]
[1755206329291,1.77980649,4537.0,4536.9,7.58]
[1755206329773,1.32220649,4537.0,4536.9,8.81]
[1755206330014,1.32220649,4537.0,4536.9,10.0356]
[1755206330511,0.1104,4537.0,4536.9,10.0356]
[1755206330724,0.1104,4537.0,4536.9,12.2423482]
[1755206331208,0.002,4537.6,4536.9,13.5827482]
[1755206331414,0.002,4537.6,4537.2,0.1104]
[1755206331636,0.002,4537.6,4537.3,0.35584]
[1755206331811,0.002,4537.6,4537.3,3.448]
[1755206332631,0.002,4537.6,4537.5,1.23]
[1755206332819,0.002,4537.6,4537.5,4.677]
[1755206334022,0.002,4537.6,4537.5,5.907]
[1755206334242,0.002,4537.6,4537.5,2.46]
[1755206334530,0.002,4537.6,4537.5,2.45669051]
[1755206334531,3.12115648,4537.6,4537.5,2.45669051]
[1755206334739,3.12115648,4537.6,4536.9,10.04]
[1755206334740,0.30575648,4537.5,4536.9,10.04]
[1755206335024,0.1104,4537.0,4536.9,10.04]
[1755206335209,34.20076748,4537.0,4536.9,10.04]
[1755206335532,35.46245169,4537.0,4536.9,11.27]
[1755206336521,35.15669521,4537.0,4536.9,11.27]
[1755206336723,34.5684285,4537.0,4536.9,11.27]
[1755206336886,34.5684285,4537.0,4536.9,12.5]
[1755206337086,35.15772895,4537.0,4536.9,12.5]
[1755206337430,34.5684285,4537.0,4536.9,12.5]
[1755206337798,37.9970371,4537.0,4536.9,12.5]
[1755206338127,36.56795212,4537.0,4536.9,6.66354537]
[1755206338429,40.67462412,4537.0,4536.9,7.89354537]
[1755206339412,60.67462412,4537.0,4536.9,7.89354537]
[1755206339718,60.67462412,4537.0,4536.9,9.12354537]
[1755206340033,61.77754082,4537.0,4536.9,9.12354537]
[1755206340531,57.78363402,4537.0,4536.9,9.12354537]
[1755206340738,50.62796252,4537.0,4536.9,9.12354537]
[1755206340940,54.16173125,4537.0,4536.9,10.35354537]
[1755206341095,57.59213125,4537.0,4536.9,10.35354537]
[1755206341295,9.95652025,4537.0,4536.9,10.35354537]
[1755206341494,32.97989052,4537.0,4536.9,10.35354537]
[1755206341741,33.41029052,4537.0,4536.9,10.35354537]
[1755206342034,38.68289052,4537.0,4536.9,10.35354537]
[1755206342238,38.68289052,4537.0,4536.9,11.58354537]
[1755206342737,37.30464605,4537.0,4536.9,11.58354537]
[1755206342905,33.85964605,4537.0,4536.9,11.58354537]
[1755206343094,37.30864605,4537.0,4536.9,11.58354537]
[1755206343726,37.73904605,4537.0,4536.9,12.81354537]
[1755206343915,37.30864605,4537.0,4536.9,12.81148781]
[1755206344118,37.73904605,4537.0,4536.9,12.81148781]
[1755206344436,35.98564605,4537.0,4536.9,12.81148781]
[1755206345115,38.68864605,4537.0,4536.9,14.04148781]
[1755206345437,39.47607401,4537.0,4536.9,14.04148781]
[1755206345642,40.79907401,4537.0,4536.9,14.04148781]
[1755206345824,41.49824326,4537.0,4536.9,14.04148781]
[1755206346547,41.49824326,4537.0,4536.9,15.27148781]
[1755206346731,40.86740253,4537.0,4536.9,15.27148781]
[1755206347042,42.69594467,4537.0,4536.9,15.27148781]
[1755206347243,42.69503879,4537.0,4536.9,12.88853737]
[1755206347427,62.69503101,4537.0,4536.9,12.88853737]
[1755206347605,61.12171755,4537.0,4536.9,12.88853737]
[1755206348030,61.23211755,4537.0,4536.9,14.11853737]
[1755206348219,61.23211755,4537.0,4536.9,12.33131478]
[1755206349346,61.3470683,4537.0,4536.9,13.56131478]
[1755206349562,61.3490683,4537.0,4536.9,13.56131478]
[1755206350710,61.3490683,4537.0,4536.9,14.79131478]
[1755206351120,65.3490683,4537.0,4536.9,14.79131478]
[1755206351327,66.0118123,4537.0,4536.9,14.79131478]
[1755206352007,66.0118123,4537.0,4536.9,16.02131478]
[1755206353032,62.0118123,4537.0,4536.9,16.02131478]
[1755206353218,62.0118123,4537.0,4536.9,13.67651523]
[1755206353415,71.3698123,4537.0,4536.9,13.67651523]
[1755206353622,71.61743716,4537.0,4536.9,13.67651523]
[1755206353822,71.61743716,4537.0,4536.9,10.69713758]
[1755206354047,72.93127178,4537.0,4536.9,8.84058224]
[1755206354347,60.65349416,4537.0,4536.9,0.44650364]
[1755206354555,60.65349416,4537.0,4535.6,0.521927]
[1755206354556,0.55,4536.3,4535.6,0.521927]
[1755206354866,0.55,4536.3,4533.4,0.4748]
[1755206354867,1.873,4535.7,4535.3,13.92695691]
[1755206355011,2.49971338,4535.4,4535.3,13.92695691]
[1755206355212,15.64925255,4535.4,4535.3,13.92695691]
[1755206355513,19.99351083,4535.4,4535.3,13.92695691]
[1755206355850,21.17022421,4535.4,4535.3,13.92695691]
[1755206356224,22.08746823,4535.4,4535.3,15.15695691]
[1755206356423,42.08746823,4535.4,4535.3,15.15695691]
[1755206356625,43.20170541,4535.4,4535.3,15.15695691]
[1755206357227,42.02499203,4535.4,4535.3,15.15695691]
[1755206357735,42.02499203,4535.4,4535.3,16.38695691]
[1755206358116,46.27261689,4535.4,4535.3,14.59877769]
[1755206358515,47.84146844,4535.4,4535.3,14.59877769]
[1755206358944,47.84146844,4535.4,4535.3,15.82877769]
[1755206359114,46.27261689,4535.4,4535.3,15.82877769]
[1755206359318,46.43858469,4535.4,4535.3,15.82877769]
[1755206359635,42.14828469,4535.4,4535.3,13.07908187]
[1755206359813,42.07328469,4535.4,4535.3,13.07908187]
[1755206360016,42.07328469,4535.4,4535.3,12.96873023]
[1755206360254,41.52178469,4535.4,4535.3,13.64723023]
[1755206360444,41.52178469,4535.4,4535.3,13.53687859]
[1755206360649,45.52178469,4535.4,4535.3,13.53687859]
[1755206360845,45.52178469,4535.4,4535.3,13.42652695]
[1755206361219,45.27415983,4535.4,4535.3,13.31617531]
[1755206361416,46.83864103,4535.4,4535.3,13.31617531]
[1755206361621,47.20156577,4535.4,4535.3,14.43582367]
[1755206362067,47.20156577,4535.4,4535.3,14.32547203]
[1755206362426,47.20156577,4535.4,4535.3,14.21512039]
[1755206362858,47.20156577,4535.4,4535.3,14.10476875]
[1755206363168,47.20017272,4535.4,4535.3,15.22441711]
[1755206363333,47.94329152,4535.4,4535.3,14.50882489]
[1755206363657,50.69337728,4535.4,4535.3,12.96850063]
[1755206363961,47.46398228,4535.4,4535.3,0.18113479]
[1755206364260,4.873,4534.0,4533.9,6.608493]
[1755206364420,42.5913968,4534.0,4533.9,6.151]
[1755206364619,42.5913968,4534.0,4533.9,4.68031042]
[1755206364859,43.7527448,4534.0,4533.9,4.56992784]
[1755206365226,45.97837521,4534.0,4533.9,4.45954526]
[1755206365558,69.97837521,4534.0,4533.9,5.68954526]
[1755206365764,66.51837521,4534.0,4533.9,5.68954526]
[1755206365960,69.97737521,4534.0,4533.9,5.68954526]
[1755206366118,68.4150398,4534.0,4533.9,5.68954526]
[1755206366759,65.51511228,4534.0,4533.9,5.68954526]
[1755206367058,61.51511228,4534.0,4533.9,6.91954526]
[1755206367561,57.50411228,4534.0,4533.9,6.91954526]
[1755206367858,54.72505965,4534.0,4533.9,6.91954526]
[1755206368061,57.40604078,4534.0,4533.9,6.91954526]
[1755206368367,60.40604078,4534.0,4533.9,8.14954526]
[1755206368564,57.40604078,4534.0,4533.9,8.14954526]
[1755206368748,57.51822802,4534.0,4533.9,8.62314526]
[1755206368955,57.51822802,4534.0,4533.9,11.06354526]
[1755206369131,57.0563173,4534.0,4533.9,11.06354526]
[1755206369330,39.8540223,4534.0,4533.9,11.06354526]
[1755206369531,33.3930223,4534.0,4533.9,11.06354526]
[1755206369732,36.73100575,4534.0,4533.9,12.29354526]
[1755206369927,31.47693154,4534.0,4533.9,12.29354526]
[1755206370167,4.8257443,4534.0,4533.9,12.29354526]
[1755206370332,4.8257443,4534.0,4533.9,13.43824989]
[1755206370527,4.623348,4534.0,4533.9,13.43824989]
[1755206370965,4.623348,4534.0,4533.9,14.66824989]
[1755206371170,1.161348,4534.0,4533.9,14.66824989]
[1755206371750,3.464,4534.2,4533.9,14.66824989]
[1755206371950,3.464,4534.2,4534.0,2.05922499]
[1755206372153,3.464,4534.2,4534.1,2.914]
[1755206372356,0.1679678,4535.4,4534.2,0.55]
[1755206372546,33.464,4535.3,4534.2,0.55]
[1755206372846,30.20372114,4535.2,4534.3,2.914]
[1755206373054,33.66672114,4535.1,4534.4,0.4694]
[1755206373258,33.66772114,4535.0,4534.4,0.943]
[1755206373475,0.1104,4534.7,4534.5,2.914]
[1755206373769,0.1104,4534.7,4534.6,3.9366]
[1755206373929,3.463,4535.1,4534.7,0.55]
[1755206374130,3.463,4535.1,4534.8,2.914]
[1755206374368,3.463,4535.1,4534.8,2.4404]
[1755206374544,3.463,4535.1,4534.9,0.4736]
[1755206374958,0.1104,4535.3,4535.0,2.4404]
[1755206375144,0.1104,4535.3,4535.1,0.765]
[1755206375349,0.1104,4535.3,4535.2,1.23]
[1755206375839,33.5724,4535.3,4535.2,1.23]
[1755206376041,36.87815648,4535.3,4535.2,1.22668667]
[1755206376360,37.34825616,4535.3,4535.2,1.22668667]
[1755206376867,40.62655775,4535.3,4535.2,2.45668667]
[1755206377435,60.62655775,4535.3,4535.2,2.45668667]
[1755206377743,61.42655775,4535.3,4535.2,2.45668667]
[1755206377890,58.52498249,4535.3,4535.2,2.45668667]
[1755206378067,58.52498249,4535.3,4535.2,3.68668667]
[1755206378391,38.52498249,4535.3,4535.2,3.68668667]
[1755206378951,39.30600136,4535.3,4535.2,3.68668667]
[1755206379157,39.96887236,4535.3,4535.2,3.68668667]
[1755206379679,39.96887236,4535.3,4535.2,4.91668667]
[1755206379880,39.18785349,4535.3,4535.2,4.91668667]
[1755206380394,39.18685349,4535.3,4535.2,4.91668667]
[1755206380688,38.88109701,4535.3,4535.2,4.91668667]
[1755206380866,38.21822601,4535.3,4535.2,6.14668667]
[1755206381065,38.88109701,4535.3,4535.2,6.14668667]
[1755206381579,34.75722601,4535.3,4535.2,6.14668667]
[1755206381775,38.88009801,4535.3,4535.2,6.14668667]
[1755206382161,38.88009801,4535.3,4535.2,7.37668667]
[1755206382754,40.20309801,4535.3,4535.2,7.37668667]
[1755206383392,38.21722601,4535.3,4535.2,7.37668667]
[1755206383700,37.16191099,4535.3,4535.2,8.60668667]
[1755206384091,37.16191099,4535.3,4535.2,9.08028667]
[1755206384414,37.03949968,4535.3,4535.2,8.60668667]
[1755206384916,7.03949968,4535.3,4535.2,9.83668667]
[1755206385126,37.03949968,4535.3,4535.2,9.83668667]
[1755206386196,37.03949968,4535.3,4535.2,11.06668667]
[1755206387324,37.03949968,4535.3,4535.2,13.98068667]
[1755206387621,37.03949968,4535.3,4535.2,15.21068667]
[1755206388112,37.03549968,4535.3,4535.2,15.21068667]
[1755206388821,37.03549968,4535.3,4535.2,13.52668667]
[1755206389190,7.03549968,4535.3,4535.2,13.52668667]
[1755206389513,37.03549968,4535.3,4535.2,13.52668667]
[1755206390507,37.03549968,4535.3,4535.2,14.75668667]
[1755206391002,34.03549968,4535.3,4535.2,14.75668667]
[1755206391205,3.5654,4535.3,4535.2,14.75668667]
[1755206392218,3.5654,4535.3,4535.2,15.98668667]
[1755206392989,0.1124,4535.3,4535.2,15.98668667]
[1755206393216,3.5614,4535.3,4535.2,18.87568667]
[1755206393422,0.1124,4535.3,4535.2,20.10568667]
[1755206393676,3.5594,4535.3,4535.2,17.65718667]
[1755206393925,3.5594,4535.3,4535.2,17.21668667]
[1755206394786,3.5594,4535.3,4535.2,18.44668667]
[1755206395137,42.38056393,4535.3,4535.2,18.44668667]
[1755206395420,49.33841731,4535.3,4535.2,18.44668667]
[1755206395614,49.33852375,4535.3,4535.2,18.44668667]
[1755206395817,49.87881194,4535.3,4535.2,18.44668667]
[1755206396030,50.00143376,4535.3,4535.2,18.44668667]
[1755206396320,68.82995521,4535.3,4535.2,18.48476692]
[1755206397497,69.37995521,4535.3,4535.2,15.54280605]
[1755206398312,69.11649702,4535.3,4535.2,15.54280605]
[1755206398512,69.11349702,4535.3,4535.2,15.54280605]
[1755206399054,69.11349702,4535.3,4535.2,16.77280605]
[1755206399717,69.11249702,4535.3,4535.2,16.77280605]
[1755206400244,65.11949702,4535.3,4535.2,16.77280605]